bitfinex/quotes_SOLUSD_20250609
["timestamp","ask_amount","ask_price","bid_price","bid_amount"]
[1749476454012,24.68452045,154.37,154.36,6.47836227]
[1749476454404,24.68452045,154.37,154.35,6.47868588]
[1749476454701,24.68452045,154.37,154.36,18.64964886]
[1749476455986,24.68452045,154.37,154.36,25.12801113]
[1749476458223,11.21864181,154.43,154.36,25.12801113]
[1749476458426,24.68452045,154.38,154.36,25.12801113]
[1749476458789,24.68452045,154.39,154.36,41.3239168]
[1749476459423,24.68452045,154.38,154.36,41.3239168]
[1749476459594,24.68452045,154.37,154.36,25.12801113]
[1749476459929,26.0,154.4,154.34,6.47920176]
[1749476460110,24.68452045,154.35,154.34,68.14885062]
[1749476460429,32.47695233,154.4,154.34,68.12885062]
[1749476460430,4.74305491,154.39,154.34,68.12885062]
[1749476460636,24.68452045,154.38,154.35,18.64964886]
[1749476460919,24.68452045,154.39,154.35,18.64964886]
[1749476461125,24.68452045,154.37,154.35,18.64964886]
[1749476461329,24.68452045,154.37,154.34,65.67720616]
[1749476461330,24.68452045,154.36,154.34,49.47920176]
[1749476461497,24.68452045,154.35,154.34,68.12885062]
[1749476461699,24.68452045,154.35,154.34,25.12885062]
[1749476461922,24.68452045,154.35,154.33,55.32]
[1749476461923,24.68452045,154.35,154.33,12.34]
[1749476462123,24.68452045,154.34,154.33,12.34]
[1749476462427,24.68452045,154.34,154.33,37.46927045]
[1749476462604,4.74305491,154.4,154.34,18.64964886]
[1749476462605,24.68452045,154.35,154.34,18.64964886]
[1749476463008,24.68452045,154.35,154.33,18.81962159]
[1749476463500,4.74305491,154.39,154.33,18.81962159]
[1749476463698,6.1595,154.4,154.34,18.64964886]
[1749476463902,6.1595,154.4,154.35,61.60964886]
[1749476463903,24.68452045,154.39,154.35,61.60964886]
[1749476464118,24.68452045,154.38,154.36,6.47836227]
[1749476464295,24.68452045,154.38,154.36,18.81836227]
[1749476464499,11.21857721,154.43,154.37,18.64964886]
[1749476464500,4.74305491,154.43,154.37,18.64964886]
[1749476464724,32.2397,154.44,154.37,18.64964886]
[1749476464897,6.2397,154.44,154.38,24.68452045]
[1749476465098,24.68452045,154.42,154.4,18.64964886]
[1749476465737,1.6442,154.45,154.4,18.64964886]
[1749476465738,24.68452045,154.45,154.4,43.33416931]
[1749476465936,6.5974,154.48,154.4,43.33416931]
[1749476466102,24.68452045,154.44,154.42,18.64964886]
[1749476466302,24.68452045,154.44,154.42,30.98964886]
[1749476466725,24.68452045,154.43,154.42,12.34]
[1749476467026,7.7083,154.42,154.34,12.34]
[1749476467203,33.7083,154.42,154.35,18.64964886]
[1749476467524,33.7083,154.42,154.34,12.34]
[1749476467824,33.7083,154.42,154.35,18.64964886]
[1749476468022,6.47626449,154.41,154.35,25.12810539]
[1749476468438,24.68452045,154.36,154.35,25.12810539]
[1749476468998,6.47677821,154.4,154.35,25.12810539]
[1749476469221,33.7083,154.42,154.35,25.12810539]
[1749476469222,24.68452045,154.36,154.35,25.12810539]
[1749476470128,24.68452045,154.36,154.35,6.47845653]
[1749476470923,24.68452045,154.36,154.34,12.34]
[1749476471114,24.68452045,154.35,154.34,18.81909051]
[1749476472208,24.68452045,154.35,154.34,37.46873937]
[1749476472407,26.0,154.39,154.34,37.46873937]
[1749476472613,24.68452045,154.36,154.35,18.64964886]
[1749476473011,4.76412119,154.4,154.35,25.12843084]
[1749476473311,24.68452045,154.38,154.36,42.92]
[1749476473516,24.68452045,154.38,154.37,18.64964886]
[1749476474202,24.68452045,154.38,154.36,42.92]
[1749476474405,24.68452045,154.37,154.36,42.92]
[1749476474914,24.68452045,154.37,154.35,6.47878198]
[1749476475112,24.68452045,154.36,154.35,6.47878198]
[1749476476206,24.68452045,154.36,154.34,18.81906931]
[1749476476410,6.47670654,154.4,154.34,12.34]
[1749476476411,24.68452045,154.35,154.34,12.34]
[1749476477629,24.68452045,154.35,154.34,18.81920176]
[1749476478530,24.68452045,154.35,154.34,12.34]
[1749476478917,7.943,154.34,154.29,18.66114097]
[1749476479252,7.943,154.34,154.29,12.18]
[1749476479253,24.68452045,154.3,154.29,12.18]
[1749476479607,31.16557566,154.3,154.25,6.48283293]
[1749476479802,4.76412119,154.31,154.25,6.48283293]
[1749476479803,24.68452045,154.26,154.25,6.48283293]
[1749476480706,24.68452045,154.26,154.24,12.18]
[1749476480907,24.68452045,154.25,154.24,18.66340248]
[1749476481632,24.68452045,154.25,154.24,12.18]
[1749476482218,24.68452045,154.25,154.17,24.68452045]
[1749476482219,26.0,154.22,154.11,16.22217896]
[1749476482425,24.68452045,154.14,154.12,55.02]
[1749476482721,4.74177371,154.21,154.13,42.84]
[1749476482917,50.68452045,154.22,154.13,42.84]
[1749476482918,24.68452045,154.16,154.14,18.64964886]
[1749476483119,24.68452045,154.16,154.15,25.13683666]
[1749476484321,24.68452045,154.16,154.15,6.4871878]
[1749476485054,6.2379,154.18,154.15,6.4871878]
[1749476485234,56.92242045,154.22,154.15,6.4871878]
[1749476485424,24.68452045,154.18,154.15,6.4871878]
[1749476485743,24.68452045,154.17,154.16,18.64964886]
[1749476485909,24.68452045,154.17,154.15,6.4871878]
[1749476486111,24.68452045,154.16,154.15,6.4871878]
[1749476486520,24.68452045,154.16,154.14,6.4874912]
[1749476486725,24.68452045,154.15,154.14,6.4874912]
[1749476486926,63.40668845,154.22,154.14,6.4874912]
[1749476486927,56.92242045,154.22,154.14,6.4874912]
[1749476487121,24.68452045,154.16,154.15,18.64964886]
[1749476487325,24.68452045,154.16,154.15,25.13683666]
[1749476490155,24.68452045,154.17,154.15,25.13683666]
[1749476490341,24.68452045,154.16,154.15,25.13683666]
[1749476490539,24.68452045,154.16,154.15,6.4871878]
[1749476491748,24.68452045,154.18,154.16,18.64964886]
[1749476492051,32.2379,154.22,154.17,42.74]
[1749476492052,6.2379,154.22,154.17,42.74]
[1749476492251,24.68452045,154.2,154.17,42.74]
[1749476492434,24.68452045,154.2,154.18,6.48592554]
[1749476494323,24.68452045,154.24,154.2,6.4850843]
[1749476494626,1.5495,154.25,154.2,6.4850843]
[1749476494627,24.68452045,154.23,154.2,6.4850843]
[1749476494826,6.3255,154.26,154.21,42.72]
[1749476495028,24.68452045,154.24,154.21,42.72]
[1749476495228,6.3255,154.26,154.21,42.72]
[1749476495424,24.68452045,154.24,154.21,42.72]
[1749476496231,6.3255,154.26,154.21,42.72]
[1749476496451,24.68452045,154.24,154.22,6.48424328]
[1749476496764,1.5122,154.29,154.23,43.33416931]
[1749476496969,24.68452045,154.29,154.24,24.68452045]
[1749476497262,24.68452045,154.28,154.25,42.68]
[1749476498233,24.68452045,154.29,154.25,42.68]
[1749476498745,24.68452045,154.29,154.26,6.4825619]
[1749476499333,24.68452045,154.28,154.26,6.4825619]
[1749476499650,24.68452045,154.27,154.26,6.4825619]
[1749476500242,24.68452045,154.28,154.26,6.4825619]
[1749476501852,6.3932,154.3,154.24,12.2]
[1749476501853,24.68452045,154.27,154.24,12.2]
[1749476502047,24.68452045,154.25,154.24,12.2]
[1749476502848,24.68452045,154.25,154.19,16.21306018]
[1749476502849,24.68452045,154.25,154.19,28.41306018]
[1749476503043,24.68452045,154.22,154.2,42.54]
[1749476503228,24.68452045,154.23,154.2,49.0250843]
[1749476503633,24.68452045,154.22,154.2,49.0250843]
[1749476504258,24.68452045,154.22,154.2,67.65473316]
[1749476504437,24.68452045,154.22,154.2,49.0050843]
[1749476505942,24.68452045,154.22,154.2,6.4850843]
[1749476506141,24.68452045,154.21,154.2,48.9650843]
[1749476506558,24.68452045,154.21,154.19,12.2]
[1749476506559,24.68452045,154.21,154.19,18.68533495]
[1749476506753,24.68452045,154.2,154.19,12.2]
[1749476507586,26.0,154.24,154.19,18.68550489]
[1749476507764,24.68452045,154.22,154.19,18.68550489]
[1749476508469,24.68452045,154.2,154.19,6.48550489]
[1749476509254,24.68452045,154.21,154.19,6.48550489]
[1749476510959,24.68452045,154.2,154.19,6.48550489]
[1749476511753,24.68452045,154.21,154.19,6.48550489]
[1749476512470,24.68452045,154.2,154.19,6.48550489]
[1749476512847,24.68452045,154.2,154.18,60.84575828]
[1749476513049,24.68452045,154.19,154.18,60.84575828]
[1749476513780,24.68452045,154.2,154.18,60.84575828]
[1749476514482,24.68452045,154.19,154.18,60.84575828]
[1749476515140,24.68452045,154.2,154.18,60.84575828]
[1749476516966,24.68452045,154.19,154.18,60.84575828]
[1749476517285,15.1471723,154.19,154.18,60.84575828]
[1749476517472,15.1471723,154.19,154.18,18.40575828]
[1749476517679,15.1471723,154.21,154.18,34.62057213]
[1749476518351,1.6531,154.25,154.19,18.64964886]
[1749476518575,15.1471723,154.22,154.19,18.64964886]
[1749476518789,15.1471723,154.21,154.19,18.64964886]
[1749476518978,15.1471723,154.2,154.18,18.40575145]
[1749476519165,15.1471723,154.19,154.18,18.40575145]
[1749476519984,15.1471723,154.19,154.18,11.92]
[1749476520171,15.1471723,154.19,154.17,6.48627167]
[1749476520370,15.1471723,154.18,154.15,6.4871878]
[1749476520578,15.1471723,154.18,154.13,158.07999119]
[1749476520579,15.1471723,154.16,154.14,6.48745533]
[1749476520901,15.1471723,154.15,154.13,18.40784604]
[1749476521061,15.1471723,154.14,154.13,18.40784604]
[1749476521386,24.7015543,154.14,154.13,18.40784604]
[1749476521557,24.7015543,154.16,154.13,18.40784604]
[1749476521765,24.7015543,154.17,154.14,18.64964886]
[1749476521963,24.7015543,154.18,154.14,18.64964886]
[1749476522966,24.7015543,154.18,154.15,6.4871878]
[1749476523582,24.7015543,154.19,154.15,6.4871878]
[1749476523898,24.7015543,154.18,154.15,22.70515731]
[1749476524264,4.7267191,154.21,154.15,22.70515731]
[1749476524265,24.7015543,154.17,154.15,22.70515731]
[1749476524460,24.7015543,154.17,154.15,6.4871878]
[1749476524890,24.7015543,154.18,154.15,22.70515731]
[1749476525673,24.7015543,154.19,154.15,47.40671161]
[1749476525872,24.7015543,154.19,154.16,18.64964886]
[1749476526183,4.7267191,154.21,154.16,18.64964886]
[1749476526184,24.7015543,154.18,154.16,18.64964886]
[1749476526386,4.7267191,154.21,154.15,22.70515731]
[1749476526387,24.7015543,154.17,154.15,6.4871878]
[1749476526609,24.7015543,154.16,154.15,48.6071878]
[1749476527269,24.7015543,154.16,154.14,6.48745362]
[1749476527610,24.7015543,154.15,154.14,6.48745362]
[1749476527892,32.48550548,154.19,154.14,6.48745362]
[1749476527893,24.7015543,154.16,154.14,6.48745362]
[1749476528090,24.7015543,154.15,154.14,6.48745362]
[1749476529278,24.7015543,154.15,154.13,11.92]
[1749476529481,24.7015543,154.14,154.13,11.92]
[1749476530088,24.7015543,154.14,154.1,43.84910855]
[1749476530302,12.8553642,154.16,154.1,43.84910855]
[1749476530511,24.7015543,154.11,154.1,43.84910855]
[1749476531005,24.7015543,154.11,154.09,6.48962375]
[1749476531192,24.7015543,154.1,154.09,6.48962375]
[1749476531878,24.7015543,154.1,154.08,18.40999448]
[1749476532078,24.7015543,154.1,154.08,60.46999448]
[1749476532284,24.7015543,154.09,154.08,18.40999448]
[1749476532500,24.7015543,154.11,154.08,18.40999448]
[1749476532999,12.8553642,154.16,154.09,43.35120316]
[1749476533000,6.3685,154.16,154.09,43.35120316]
[1749476533185,24.7015543,154.14,154.12,6.48845055]
[1749476533507,24.7015543,154.15,154.12,6.48845055]
[1749476533797,6.3685,154.16,154.12,6.48845055]
[1749476533798,24.7015543,154.14,154.12,6.48845055]
[1749476534712,24.7015543,154.15,154.12,22.70957694]
[1749476535625,24.7015543,154.16,154.13,18.64964886]
[1749476535804,1.589,154.18,154.13,18.64964886]
[1749476535805,24.7015543,154.15,154.13,18.64964886]
[1749476535992,1.589,154.18,154.12,6.48845055]
[1749476535993,24.7015543,154.14,154.12,6.48845055]
[1749476536191,24.7015543,154.13,154.12,6.48845055]
[1749476536529,24.7015543,154.13,154.1,6.48929266]
[1749476536691,24.7015543,154.11,154.1,6.48929266]
[1749476539197,24.7015543,154.11,154.09,6.48958164]
[1749476539413,24.7015543,154.1,154.09,6.48958164]
[1749476539713,6.4669,154.14,154.09,6.48958164]
[1749476539714,24.7015543,154.11,154.09,41.363515]
[1749476539935,24.7015543,154.12,154.09,41.363515]
[1749476540214,24.7015543,154.1,154.09,41.363515]
[1749476540516,24.7015543,154.1,154.09,25.1392305]
[1749476540714,24.7015543,154.1,154.09,6.48958164]
[1749476541600,6.4669,154.14,154.09,6.48958164]
[1749476541905,6.4669,154.14,154.1,18.64964886]
[1749476542115,24.7015543,154.13,154.1,18.64964886]
[1749476542605,24.7015543,154.12,154.1,18.64964886]
[1749476543222,15.16095951,154.12,154.1,18.64964886]
[1749476543404,15.16095951,154.12,154.11,6.48887158]
[1749476545490,15.16095951,154.12,154.09,25.13936266]
[1749476545691,15.16095951,154.11,154.09,25.13936266]
[1749476545934,15.16095951,154.12,154.09,41.36364716]
[1749476546296,15.16095951,154.11,154.09,6.4897138]
[1749476546525,15.16095951,154.1,154.08,18.40995531]
[1749476546706,15.16095951,154.09,154.08,18.40995531]
[1749476547426,15.16095951,154.11,154.09,18.64964886]
[1749476547719,15.16095951,154.12,154.1,6.48929266]
[1749476547918,15.16095951,154.11,154.1,6.48929266]
[1749476548326,15.16095951,154.11,154.08,28.14533748]
[1749476548327,15.16095951,154.11,154.09,6.48954909]
[1749476548504,15.16095951,154.11,154.09,25.13919795]
[1749476548705,26.0,154.14,154.09,25.13919795]
[1749476548904,15.16095951,154.13,154.1,18.64964886]
[1749476549222,15.16095951,154.12,154.1,18.64964886]
[1749476549406,15.16095951,154.11,154.09,6.48954909]
[1749476549609,15.16095951,154.11,154.09,25.13919795]
[1749476549803,15.16095951,154.12,154.09,25.13919795]
[1749476550002,11.21809217,154.16,154.09,25.13919795]
[1749476550003,15.16095951,154.11,154.09,25.13919795]
[1749476550206,11.21809217,154.16,154.09,25.13919795]
[1749476550429,15.16095951,154.12,154.09,25.13919795]
[1749476550605,32.4342,154.17,154.1,18.64964886]
[1749476550915,15.16095951,154.12,154.11,60.48964886]
[1749476551222,15.16095951,154.13,154.11,60.48964886]
[1749476551597,15.16095951,154.13,154.12,6.48845055]
[1749476552725,15.16095951,154.13,154.11,48.32872272]
[1749476552899,58.81545954,154.17,154.11,48.32872272]
[1749476552900,15.16095951,154.12,154.11,48.32872272]
[1749476553401,15.16095951,154.12,154.11,41.84]
[1749476554116,15.16095951,154.12,154.11,48.32887158]
[1749476554308,32.4342,154.17,154.11,48.32887158]
[1749476554510,15.16095951,154.14,154.11,48.32887158]
[1749476554723,38.92057662,154.17,154.11,48.32887158]
[1749476554724,15.16095951,154.12,154.11,41.84]
[1749476555024,15.16095951,154.12,154.09,48.28966503]
[1749476555214,15.16095951,154.1,154.08,60.20996502]
[1749476555902,15.16095951,154.11,154.08,60.20996502]
[1749476556714,15.16095951,154.12,154.09,18.64964886]
[1749476557919,15.16095951,154.13,154.1,6.48929266]
[1749476558110,15.16095951,154.14,154.1,6.48929266]
[1749476559326,26.0,154.16,154.1,6.48929266]
[1749476559510,15.16095951,154.13,154.1,6.48929266]
[1749476560506,26.0,154.16,154.1,6.48929266]
[1749476560706,15.16095951,154.14,154.1,6.48929266]
[1749476561124,15.16095951,154.13,154.1,6.48929266]
[1749476561726,15.16095951,154.12,154.1,6.48929266]
[1749476562104,15.16095951,154.13,154.1,6.48929266]
[1749476562752,30.74342503,154.16,154.11,18.64964886]
[1749476562753,15.16095951,154.15,154.11,18.64964886]
[1749476563027,1.589,154.18,154.14,15.16095951]
[1749476563238,6.0274,154.21,154.15,33.81060837]
[1749476563412,15.16095951,154.19,154.16,41.72]
[1749476563728,6.0274,154.21,154.16,41.72]
[1749476563729,15.16095951,154.18,154.16,41.72]
[1749476564530,15.16095951,154.18,154.16,48.20670302]
[1749476564937,6.0274,154.21,154.16,48.20670302]
[1749476565161,15.16095951,154.18,154.16,48.20670302]
[1749476565653,15.16095951,154.2,154.16,48.20670302]
[1749476566123,15.16095951,154.19,154.16,48.20670302]
[1749476566309,6.0274,154.21,154.16,48.20670302]
[1749476566310,15.16095951,154.2,154.16,48.20670302]
[1749476566937,15.16095951,154.2,154.16,63.36766253]
[1749476567124,15.16095951,154.2,154.16,48.20670302]
[1749476567843,15.16095951,154.2,154.16,63.36766253]
[1749476568537,4.74383502,154.24,154.19,15.16095951]
[1749476568739,15.16095951,154.27,154.22,15.16095951]
[1749476568945,15.16095951,154.28,154.23,15.16095951]
[1749476569146,6.2575,154.3,154.24,41.74]
[1749476569453,15.16095951,154.29,154.24,56.90095951]
[1749476569765,6.2575,154.3,154.26,15.16095951]
[1749476569766,21.41845951,154.3,154.26,15.16095951]
[1749476569949,21.41845951,154.3,154.26,26.62095951]
[1749476570124,21.41845951,154.3,154.26,11.46]
[1749476570443,15.16095951,154.28,154.26,11.46]
[1749476570623,15.16095951,154.29,154.27,6.48214169]
[1749476570820,15.16095951,154.31,154.27,6.48214169]
[1749476571147,15.16095951,154.32,154.28,41.68]
[1749476571752,15.16095951,154.31,154.28,41.68]
[1749476572633,15.16095951,154.31,154.28,48.16141376]
[1749476572959,6.47922209,154.34,154.28,48.16141376]
[1749476573158,33.7822,154.35,154.28,48.16141376]
[1749476573462,15.16095951,154.33,154.29,15.16095951]
[1749476573757,15.16095951,154.33,154.28,63.32237327]
[1749476573966,33.7822,154.35,154.3,15.16095951]
[1749476574258,6.1681,154.35,154.3,15.16095951]
[1749476574434,6.1681,154.35,154.29,18.64964886]
[1749476574435,7.9688,154.39,154.31,15.16095951]
[1749476574630,6.3387,154.39,154.34,6.47920176]
[1749476574846,6.3387,154.39,154.35,18.64964886]
[1749476574847,21.49965951,154.39,154.35,18.64964886]
[1749476575035,15.16095951,154.39,154.35,33.81060837]
[1749476575247,15.16095951,154.39,154.35,18.64964886]
[1749476575741,15.16095951,154.38,154.35,18.64964886]
[1749476576354,7.8327,154.43,154.32,53.08]
[1749476576355,15.16095951,154.36,154.32,53.08]
[1749476576667,7.8327,154.43,154.32,17.93993749]
[1749476576668,15.16095951,154.33,154.32,17.93993749]
[1749476576829,15.16095951,154.33,154.32,11.46]
[1749476578060,15.16095951,154.33,154.28,48.22142304]
[1749476578237,15.16095951,154.3,154.28,48.22142304]
[1749476578641,6.47929013,154.34,154.28,48.22142304]
[1749476578859,15.16095951,154.3,154.28,48.22142304]
[1749476579442,15.16095951,154.29,154.28,48.22142304]
[1749476579653,15.16095951,154.3,154.28,48.22142304]
[1749476579962,15.16095951,154.31,154.28,48.22142304]
[1749476580259,29.82275927,154.35,154.28,48.22142304]
[1749476580260,15.16095951,154.32,154.29,18.64964886]
[1749476580736,15.16095951,154.31,154.28,48.22142304]
[1749476580939,15.16095951,154.29,154.28,66.8710719]
[1749476581341,15.16095951,154.29,154.27,48.82]
[1749476581540,26.0,154.34,154.27,48.82]
[1749476581541,15.16095951,154.28,154.27,48.82]
[1749476581742,15.16095951,154.28,154.27,11.46]
[1749476583236,24.66611095,154.28,154.27,11.46]
[1749476587678,24.66611095,154.28,154.22,18.64964886]
[1749476587679,14.48354169,154.27,154.22,11.46]
[1749476587892,24.66611095,154.23,154.22,11.46]
[1749476588039,24.66611095,154.23,154.17,90.5]
[1749476588245,30.68889593,154.27,154.17,48.8]
[1749476588246,24.66611095,154.18,154.17,48.8]
[1749476589254,24.66611095,154.18,154.17,55.28634624]
[1749476590560,24.66611095,154.18,154.17,48.8]
[1749476590748,24.66611095,154.18,154.17,55.28634624]
[1749476590949,24.66611095,154.18,154.17,48.8]
[1749476591171,24.66611095,154.18,154.17,11.46]
[1749476593964,24.66611095,154.18,154.17,17.94634624]
[1749476594167,8.0014,154.27,154.18,18.64964886]
[1749476594369,24.66611095,154.22,154.19,41.6]
[1749476594676,24.66611095,154.2,154.19,41.6]
[1749476595973,32.4835453,154.24,154.19,48.08550489]
[1749476596163,24.66611095,154.2,154.19,41.6]
[1749476597771,24.66611095,154.2,154.19,48.08550489]
[1749476598662,24.66611095,154.2,154.19,41.6]
[1749476598980,24.66611095,154.2,154.17,11.46]
[1749476599178,32.4835453,154.24,154.17,11.46]
[1749476599179,24.66611095,154.18,154.17,11.46]
[1749476599686,24.66611095,154.2,154.17,36.5959951]
[1749476599865,24.66611095,154.21,154.18,18.64964886]
[1749476600057,24.66611095,154.2,154.18,18.64964886]
[1749476601789,24.66611095,154.2,154.18,6.48592554]
[1749476602297,26.0,154.24,154.19,18.64964886]
[1749476602298,24.66611095,154.22,154.19,18.64964886]
[1749476602593,24.66611095,154.24,154.2,41.88]
[1749476602802,24.66611095,154.25,154.21,43.31575981]
[1749476603167,24.66611095,154.24,154.21,18.64964886]
[1749476603368,24.66611095,154.23,154.21,18.64964886]
[1749476603693,24.66611095,154.23,154.2,41.88]
[1749476604063,14.48362963,154.27,154.21,6.48466377]
[1749476604263,24.66611095,154.24,154.21,6.48466377]
[1749476604573,24.66611095,154.23,154.21,6.48466377]
[1749476604963,24.66611095,154.22,154.19,6.48544246]
[1749476605287,24.66611095,154.22,154.16,87.7]
[1749476605288,24.66611095,154.2,154.17,60.54964886]
[1749476605488,24.66611095,154.18,154.17,60.54964886]
[1749476605695,24.66611095,154.2,154.17,60.54964886]
[1749476605861,24.66611095,154.22,154.19,18.64964886]
[1749476606187,24.66611095,154.22,154.2,6.4850843]
[1749476606391,24.66611095,154.21,154.18,25.1355744]
[1749476607678,24.66611095,154.22,154.18,41.35038825]
[1749476607880,24.66611095,154.22,154.18,66.0164992]
[1749476608799,24.66611095,154.22,154.18,41.35038825]
[1749476609472,24.66611095,154.2,154.18,25.1355744]
[1749476609668,24.66611095,154.19,154.18,6.48592554]
[1749476609896,24.66611095,154.19,154.18,48.32592554]
[1749476610062,24.66611095,154.2,154.18,48.32592554]
[1749476610269,24.66611095,154.19,154.18,48.32592554]
[1749476610489,24.66611095,154.19,154.16,18.08674652]
[1749476610787,6.4848819,154.21,154.16,11.6]
[1749476610788,24.66611095,154.17,154.16,11.6]
[1749476614475,13.01185904,154.2,154.16,11.6]
[1749476614793,24.66611095,154.17,154.16,11.6]
[1749476617078,6.5267,154.2,154.16,18.08676699]
[1749476617281,24.66611095,154.18,154.16,18.08676699]
[1749476618671,6.5267,154.2,154.16,18.08676699]
[1749476618996,24.66611095,154.18,154.16,18.08676699]
[1749476619300,15.14852704,154.18,154.16,18.08676699]
[1749476619874,15.14852704,154.19,154.16,18.08676699]
[1749476620181,15.14852704,154.2,154.17,41.7]
[1749476620386,15.14852704,154.19,154.17,41.7]
[1749476620586,15.14852704,154.19,154.18,6.48592554]
[1749476621696,33.5725,154.24,154.18,6.48592554]
[1749476621875,15.14852704,154.2,154.18,6.48592554]
[1749476622579,15.14852704,154.19,154.18,6.48592554]
[1749476622989,26.0,154.2,154.18,6.48592554]
[1749476622990,15.14852704,154.2,154.18,6.48592554]
[1749476624406,15.14852704,154.19,154.18,6.48592554]
[1749476624697,15.14852704,154.19,154.17,48.1462313]
[1749476625006,15.14852704,154.18,154.17,48.1462313]
[1749476625305,15.14852704,154.18,154.16,11.6]
[1749476625600,15.14852704,154.17,154.16,11.6]
[1749476628907,15.14852704,154.17,154.16,18.08676699]
[1749476629687,15.14852704,154.17,154.16,11.6]
[1749476631189,15.14852704,154.17,154.16,18.08676699]
[1749476631409,15.14852704,154.17,154.16,11.6]
[1749476631902,15.14852704,154.17,154.14,6.48747509]
[1749476632111,15.14852704,154.15,154.12,6.48811347]
[1749476632308,21.25282704,154.17,154.11,11.4]
[1749476632309,15.14852704,154.13,154.11,11.4]
[1749476632480,15.14852704,154.12,154.11,11.4]
[1749476635186,15.14852704,154.12,154.11,17.88887158]
[1749476636202,15.14852704,154.13,154.11,17.88887158]
[1749476637011,15.14852704,154.12,154.11,17.88887158]
[1749476638195,15.14852704,154.13,154.11,17.88887158]
[1749476638798,15.14852704,154.12,154.11,17.88887158]
[1749476639008,15.14852704,154.13,154.11,17.88887158]
[1749476639214,26.0,154.15,154.11,17.88887158]
[1749476639510,15.14852704,154.13,154.11,17.88887158]
[1749476639725,26.0,154.15,154.11,17.88887158]
[1749476639896,15.14852704,154.14,154.12,41.44]
[1749476640286,15.14852704,154.15,154.13,6.48802958]
[1749476641011,7.6611,154.17,154.12,47.92829307]
[1749476641012,15.14852704,154.14,154.12,47.92829307]
[1749476642088,15.14852704,154.15,154.12,47.92829307]
[1749476642293,15.14852704,154.17,154.14,6.48760866]
[1749476644201,38.44315497,154.21,154.14,6.48760866]
[1749476644414,15.14852704,154.18,154.14,37.85515736]
[1749476644719,33.713,154.21,154.14,37.85515736]
[1749476644720,15.14852704,154.17,154.14,6.48760866]
[1749476645395,15.14852704,154.16,154.14,6.48760866]
[1749476645590,15.14852704,154.15,154.14,6.48760866]
[1749476646025,15.14852704,154.15,154.12,47.88845055]
[1749476646316,15.14852704,154.14,154.12,47.88845055]
[1749476646521,15.14852704,154.13,154.12,6.48845055]
[1749476646819,30.73225729,154.2,154.12,6.48845055]
[1749476646820,15.14852704,154.14,154.12,6.48845055]
[1749476648802,15.14852704,154.15,154.12,6.48845055]
[1749476649023,4.73225729,154.2,154.13,15.14852704]
[1749476649201,7.713,154.21,154.14,15.14852704]
[1749476649202,15.14852704,154.18,154.14,15.14852704]
[1749476649396,7.713,154.21,154.14,15.14852704]
[1749476649631,15.14852704,154.19,154.14,15.14852704]
[1749476649930,15.14852704,154.19,154.16,6.48676699]
[1749476652917,15.14852704,154.19,154.16,22.70368447]
[1749476653221,4.73225729,154.23,154.18,15.14852704]
[1749476653424,15.14852704,154.24,154.19,56.46852704]
[1749476653733,15.14852704,154.23,154.19,41.32]
[1749476654121,8.1181,154.25,154.2,6.4850843]
[1749476654618,15.14852704,154.24,154.2,6.4850843]
[1749476654815,15.14852704,154.24,154.2,21.63361134]
[1749476655035,15.14852704,154.25,154.2,37.8463221]
[1749476655238,15.14852704,154.25,154.21,11.4]
[1749476655623,15.14852704,154.25,154.21,26.54852704]
[1749476655833,15.14852704,154.25,154.21,11.4]
[1749476656016,12.62050503,154.28,154.21,11.4]
[1749476656017,15.14852704,154.22,154.21,11.4]
[1749476656717,15.14852704,154.22,154.21,17.88466377]
[1749476657051,15.14852704,154.23,154.21,17.88466377]
[1749476657765,15.14852704,154.24,154.21,17.88466377]
[1749476658143,6.1387,154.28,154.21,33.03319081]
[1749476658445,15.14852704,154.26,154.21,33.03319081]
[1749476658746,15.14852704,154.25,154.21,17.88466377]
[1749476659239,15.14852704,154.24,154.21,17.88466377]
[1749476659639,15.14852704,154.25,154.21,17.88466377]
[1749476659827,15.14852704,154.24,154.21,17.88466377]
[1749476661454,6.48240723,154.27,154.21,17.88466377]
[1749476661620,15.14852704,154.24,154.21,17.88466377]
[1749476662641,15.14852704,154.23,154.21,11.4]
[1749476662831,15.14852704,154.23,154.21,17.88444828]
[1749476663717,15.14852704,154.23,154.21,11.4]
[1749476664424,15.14852704,154.22,154.21,11.4]
[1749476665734,6.48316363,154.25,154.21,11.4]
[1749476665946,15.14852704,154.22,154.21,11.4]
[1749476666158,26.0,154.26,154.21,33.03319081]
[1749476666361,15.14852704,154.26,154.22,15.14852704]
[1749476666656,15.14852704,154.26,154.21,17.88466377]
[1749476666657,15.14852704,154.26,154.23,6.48382286]
[1749476667660,15.14852704,154.26,154.22,6.48424328]
[1749476667833,15.14852704,154.25,154.22,6.48424328]